fUSD/lending_fUSD_20250117
["ID","MTS","AMOUNT","RATE_DAILY","PERIOD"]
[349245062,1737073858721,-1631.45546,0.00027397,7]
[349245063,1737073858732,-500.0,0.00027397,3]
[349245064,1737073858741,-500.0,0.00027397,3]
[349245065,1737073858751,-500.0,0.00027397,3]
[349245066,1737073858760,-200.0,0.00027397,2]
[349245067,1737073858770,-1631.45546,0.00027397,7]
[349245068,1737073858779,-500.0,0.00027397,3]
[349245069,1737073858790,-544.06624291,0.00027397,3]
[349245070,1737073858801,-500.0,0.00027397,3]
[349245071,1737073858812,-1631.45546,0.00027397,7]
[349245072,1737073858821,-500.0,0.00027397,3]
[349245073,1737073858831,-1631.45546,0.00027397,7]
[349245074,1737073858840,-500.0,0.00027397,3]
[349245075,1737073858850,-500.0,0.00027397,3]
[349245076,1737073858860,-2649.31,0.00027397,3]
[349245077,1737073858869,-500.0,0.00027397,3]
[349245078,1737073858880,-500.0,0.00027397,3]
[349245079,1737073859275,-500.0,0.00027397,3]
[349245080,1737073859305,-2649.31,0.00027397,3]
[349245081,1737073859324,-500.0,0.00027397,3]
[349245082,1737073859335,-1631.45546,0.00027397,7]
[349245083,1737073859345,-500.0,0.00027397,3]
[349245084,1737073859355,-500.0,0.00027397,3]
[349245085,1737073859364,-2649.31,0.00027397,3]
[349245086,1737073859373,-500.0,0.00027397,3]
[349245087,1737073859383,-500.0,0.00027397,3]
[349245088,1737073859394,-2649.31,0.00027397,3]
[349245089,1737073859403,-1631.45546,0.00027397,7]
[349245090,1737073859413,-500.0,0.00027397,3]
[349245091,1737073859422,-500.0,0.00027397,3]
[349245092,1737073859432,-168.40288375,0.00027397,3]
[349245093,1737073859441,-500.0,0.00027397,3]
[349245094,1737073859451,-1631.45546,0.00027397,7]
[349245095,1737073859460,-2649.31,0.00027397,3]
[349245096,1737073859471,-500.0,0.00027397,3]
[349245097,1737073859481,-2649.31,0.00027397,3]
[349245098,1737073859491,-1631.45546,0.00027397,7]
[349245099,1737073859502,-2649.31,0.00027397,3]
[349245100,1737073859512,-2649.31,0.00027397,3]
[349245101,1737073859521,-1631.45546,0.00027397,7]
[349245102,1737073859532,-2649.31,0.00027397,3]
[349245103,1737073859541,-2649.31,0.00027397,3]
[349245104,1737073859551,-1631.45546,0.00027397,7]
[349245105,1737073859561,-2649.31,0.00027397,3]
[349245106,1737073859570,-1631.45546,0.00027397,7]
[349245107,1737073859578,-2649.31,0.00027397,3]
[349245108,1737073859588,-2649.31,0.00027397,3]
[349245109,1737073859597,-1631.45546,0.00027397,7]
[349245110,1737073859607,-2649.31,0.00027397,3]
[349245111,1737073859617,-2649.31,0.00027397,3]
[349245112,1737073859627,-1631.45546,0.00027397,7]
[349245113,1737073859637,-2649.31,0.00027397,3]
[349245114,1737073859647,-2649.31,0.00027397,3]
[349245115,1737073859656,-1631.45546,0.00027397,7]
[349245116,1737073859665,-1631.455454,0.00027397,7]
[349245117,1737073859675,-500.0,0.00027397,3]
[349245118,1737073859684,-500.0,0.00027397,3]
[349245119,1737073859693,-1889.05,0.00027397,3]
[349245120,1737073859702,-500.0,0.00027397,3]
[349245121,1737073859712,-500.0,0.00027397,3]
[349245122,1737073859725,-1889.05,0.00027397,3]
[349245123,1737073859735,-2649.31,0.00027397,3]
[349245124,1737073859744,-500.0,0.00027397,3]
[349245125,1737073859754,-500.0,0.00027397,3]
[349245126,1737073859763,-2649.31,0.00027397,3]
[349245127,1737073859775,-519.41718964,0.00027397,3]
[349245128,1737073859784,-507.86393809,0.00027397,3]
[349245129,1737073859794,-1889.05,0.00027397,3]
[349245130,1737073859805,-2649.31,0.00027397,3]
[349245131,1737073859815,-1889.05,0.00027397,3]
[349245132,1737073859824,-2649.31,0.00027397,3]
[349245133,1737073859834,-2649.31,0.00027397,3]
[349245134,1737073859843,-1889.05,0.00027397,3]
[349245135,1737073859854,-2649.31,0.00027397,3]
[349245136,1737073859863,-500.0,0.00027397,3]
[349245137,1737073859872,-1889.05,0.00027397,3]
[349245138,1737073859883,-2649.54,0.00027397,3]
[349245139,1737073859892,-500.0,0.00027397,3]
[349245140,1737073859902,-1889.05,0.00027397,3]
[349245141,1737073859911,-500.0,0.00027397,3]
[349245142,1737073859922,-1889.05,0.00027397,3]
[349245143,1737073859931,-500.0,0.00027397,3]
[349245144,1737073859941,-1889.05,0.00027397,3]
[349245145,1737073859950,-399.4461012,0.00027397,3]
[349245146,1737073859960,-1889.05,0.00027397,3]
[349245147,1737073859970,-500.0,0.00027397,3]
[349245148,1737073859979,-1889.05,0.00027397,3]
[349245149,1737073859989,-500.0,0.00027397,3]
[349245150,1737073859999,-1889.05,0.00027397,3]
[349245151,1737073860008,-500.0,0.00027397,3]
[349245152,1737073860018,-1889.05,0.00027397,3]
[349245153,1737073860027,-500.0,0.00027397,3]
[349245154,1737073860036,-1889.05,0.00027397,3]
[349245155,1737073860045,-500.0,0.00027397,3]
[349245156,1737073860055,-1889.05,0.00027397,3]
[349245157,1737073860065,-507.59500827,0.00027397,3]
[349245158,1737073860075,-1889.05,0.00027397,3]
[349245159,1737073860084,-500.0,0.00027397,3]
[349245160,1737073860093,-1889.05,0.00027397,3]
[349245161,1737073860103,-500.0,0.00027397,3]
[349245162,1737073860113,-1889.05,0.00027397,3]
[349245163,1737073860122,-507.09315278,0.00027397,3]
[349245164,1737073860131,-1889.05,0.00027397,3]
[349245165,1737073860140,-1889.05,0.00027397,3]
[349245166,1737073860150,-1889.05,0.00027397,3]
[349245167,1737073860160,-596.381377,0.00027397,7]
[349245168,1737073860169,-1889.05,0.00027397,3]
[349245169,1737073860179,-596.381377,0.00027397,7]
[349245170,1737073860191,-500.0,0.00027397,3]
[349245171,1737073860201,-1889.05,0.00027397,3]
[349245172,1737073860210,-500.0,0.00027397,3]
[349245173,1737073860219,-1889.28,0.00027397,3]
[349245174,1737073860229,-596.381377,0.00027397,7]
[349245175,1737073860239,-500.0,0.00027397,3]
[349245176,1737073860248,-500.0,0.00027397,3]
[349245177,1737073860258,-500.0,0.00027397,3]
[349245178,1737073860267,-596.381377,0.00027397,7]
[349245179,1737073860277,-500.0,0.00027397,3]
[349245180,1737073860286,-500.0,0.00027397,3]
[349245181,1737073860295,-596.381377,0.00027397,7]
[349245182,1737073860304,-500.0,0.00027397,3]
[349245183,1737073860315,-500.0,0.00027397,3]
[349245184,1737073860324,-500.0,0.00027397,3]
[349245185,1737073860333,-596.381377,0.00027397,7]
[349245186,1737073860344,-500.0,0.00027397,3]
[349245187,1737073860354,-151.0,0.00027397,7]
[349245188,1737073860364,-500.0,0.00027397,3]
[349245189,1737073860373,-596.381377,0.00027397,7]
[349245190,1737073860383,-557.33723288,0.00027397,3]
[349245191,1737073860394,-151.0,0.00027397,7]
[349245192,1737073860403,-500.0,0.00027397,3]
[349245193,1737073860413,-596.381377,0.00027397,7]
[349245194,1737073860425,-6456.32,0.00027397,3]
[349245195,1737073860436,-500.0,0.00027397,3]
[349245196,1737073860446,-151.0,0.00027397,7]
[349245197,1737073860456,-596.381377,0.00027397,7]
[349245198,1737073860466,-500.0,0.00027397,3]
[349245199,1737073860475,-286.294136,0.00027397,7]
[349245200,1737073860485,-6456.32,0.00027397,3]
[349245201,1737073860495,-500.0,0.00027397,3]
[349245202,1737073860504,-596.381377,0.00027397,7]
[349245203,1737073860514,-6456.32,0.00027397,3]
[349245204,1737073860522,-500.0,0.00027397,3]
[349245205,1737073860531,-596.381377,0.00027397,7]
[349245206,1737073860541,-6456.32,0.00027397,3]
[349245207,1737073860551,-500.0,0.00027397,3]
[349245208,1737073860560,-500.0,0.00027397,3]
[349245209,1737073860570,-6456.32,0.00027397,3]
[349245210,1737073860580,-500.0,0.00027397,3]
[349245211,1737073860589,-500.0,0.00027397,3]
[349245212,1737073860599,-6456.32,0.00027397,3]
[349245213,1737073860608,-596.381377,0.00027397,7]
[349245214,1737073860617,-500.0,0.00027397,3]
[349245215,1737073860627,-500.0,0.00027397,3]
[349245216,1737073860637,-6456.32,0.00027397,3]
[349245217,1737073860646,-500.0,0.00027397,3]
[349245218,1737073860656,-596.381377,0.00027397,7]
[349245219,1737073860665,-6456.32,0.00027397,3]
[349245220,1737073860674,-500.0,0.00027397,3]
[349245221,1737073860683,-596.381377,0.00027397,7]
[349245222,1737073860693,-500.0,0.00027397,3]
[349245223,1737073860702,-6456.32,0.00027397,3]
[349245224,1737073860712,-271.73345919,0.00027397,3]
[349245225,1737073860723,-596.381377,0.00027397,7]
[349245226,1737073860734,-500.0,0.00027397,3]
[349245227,1737073860744,-6456.32,0.00027397,3]
[349245228,1737073860754,-500.0,0.00027397,3]
[349245229,1737073860763,-596.381377,0.00027397,7]
[349245230,1737073860773,-500.0,0.00027397,3]
[349245231,1737073860783,-648.87,0.00027397,3]
[349245232,1737073860792,-596.381377,0.00027397,7]
[349245233,1737073860803,-500.0,0.00027397,3]
[349245234,1737073860813,-648.87,0.00027397,3]
[349245235,1737073860823,-500.0,0.00027397,3]
[349245236,1737073860833,-6456.32,0.00027397,3]
[349245237,1737073860842,-157.0182,0.00027397,3]
[349245238,1737073860852,-596.381377,0.00027397,7]
[349245239,1737073860862,-648.87,0.00027397,3]
[349245240,1737073860872,-228.09129722,0.00027397,3]
[349245241,1737073860881,-157.0182,0.00027397,3]
[349245242,1737073860892,-648.87,0.00027397,3]
[349245243,1737073860903,-596.381377,0.00027397,7]
[349245244,1737073860913,-157.0182,0.00027397,3]
[349245245,1737073860923,-648.87,0.00027397,3]
[349245246,1737073860932,-648.87,0.00027397,3]
[349245247,1737073860942,-596.38137,0.00027397,7]
[349245248,1737073860951,-575.18,0.00027397,3]
[349245249,1737073860960,-648.87,0.00027397,3]
[349245250,1737073860970,-6456.32,0.00027397,3]
[349245251,1737073860979,-575.18,0.00027397,3]
[349245252,1737073860989,-648.87,0.00027397,3]
[349245253,1737073860998,-575.18,0.00027397,3]
[349245254,1737073861008,-500.0,0.00027397,3]
[349245255,1737073861018,-648.87,0.00027397,3]
[349245256,1737073861027,-575.18,0.00027397,3]
[349245257,1737073861036,-500.0,0.00027397,3]
[349245258,1737073861046,-648.87,0.00027397,3]
[349245259,1737073861055,-575.18,0.00027397,3]
[349245260,1737073861065,-500.0,0.00027397,3]
[349245261,1737073861074,-6456.32,0.00027397,3]
[349245262,1737073861083,-648.87,0.00027397,3]
[349245263,1737073861093,-681.0,0.00027397,3]
[349245264,1737073861102,-500.0,0.00027397,2]
[349245265,1737073861111,-575.18,0.00027397,3]
[349245266,1737073861121,-459.37053765,0.00027397,3]
[349245267,1737073861130,-648.87,0.00027397,3]
[349245268,1737073861139,-681.0,0.00027397,3]
[349245269,1737073861148,-591.80753429,0.00027397,2]
[349245270,1737073861158,-575.18,0.00027397,3]
[349245271,1737073861167,-6456.32,0.00027397,3]
[349245272,1737073861176,-648.87,0.00027397,3]
[349245273,1737073861186,-681.0,0.00027397,3]
[349245274,1737073861195,-151.0,0.00027397,7]
[349245275,1737073861204,-575.18,0.00027397,3]
[349245276,1737073861213,-648.87,0.00027397,3]
[349245277,1737073861222,-575.18,0.00027397,3]
[349245278,1737073861232,-151.0,0.00027397,7]
[349245279,1737073861241,-648.87,0.00027397,3]
[349245280,1737073861251,-681.0,0.00027397,3]
[349245281,1737073861260,-648.87,0.00027397,3]
[349245282,1737073861270,-681.0,0.00027397,3]
[349245283,1737073861279,-6456.32,0.00027397,3]
[349245284,1737073861289,-151.0,0.00027397,7]
[349245285,1737073861299,-575.18,0.00027397,3]
[349245286,1737073861308,-648.87,0.00027397,3]
[349245287,1737073861318,-575.18,0.00027397,3]
[349245288,1737073861327,-648.87,0.00027397,3]
[349245289,1737073861336,-681.0,0.00027397,3]
[349245290,1737073861346,-575.18,0.00027397,3]
[349245291,1737073861355,-6456.32,0.00027397,3]
[349245292,1737073861364,-648.87,0.00027397,3]
[349245293,1737073861374,-575.18,0.00027397,3]
[349245294,1737073861383,-500.0,0.00027397,3]
[349245295,1737073861393,-681.0,0.00027397,3]
[349245296,1737073861402,-648.87,0.00027397,3]
[349245297,1737073861412,-151.0,0.00027397,7]
[349245298,1737073861421,-575.18,0.00027397,3]
[349245299,1737073861431,-500.0,0.00027397,3]
[349245300,1737073861440,-681.0,0.00027397,3]
[349245301,1737073861449,-648.87,0.00027397,3]
[349245302,1737073861459,-575.18,0.00027397,3]
[349245303,1737073861468,-500.0,0.00027397,3]
[349245304,1737073861477,-151.0,0.00027397,7]
[349245305,1737073861486,-681.0,0.00027397,3]
[349245306,1737073861496,-500.0,0.00027397,3]
[349245307,1737073861505,-575.18,0.00027397,3]
[349245308,1737073861515,-681.0,0.00027397,3]
[349245309,1737073861524,-151.0,0.00027397,7]
[349245310,1737073861534,-500.0,0.00027397,3]
[349245311,1737073861543,-575.18,0.00027397,3]
[349245312,1737073861552,-648.87,0.00027397,3]
[349245313,1737073861561,-681.0,0.00027397,3]
[349245314,1737073861571,-196.49930834,0.00027397,3]
[349245315,1737073861579,-575.18,0.00027397,3]
[349245316,1737073861587,-648.87,0.00027397,3]
[349245317,1737073861596,-151.0,0.00027397,7]
[349245318,1737073861604,-648.93,0.00027397,3]
[349245319,1737073861613,-681.0,0.00027397,3]
[349245320,1737073861622,-575.18,0.00027397,3]
[349245321,1737073861630,-6456.32,0.00027397,3]
[349245322,1737073861639,-681.0,0.00027397,3]
[349245323,1737073861649,-151.0,0.00027397,7]
[349245324,1737073861658,-575.18,0.00027397,3]
[349245325,1737073861667,-681.0,0.00027397,3]
[349245326,1737073861676,-575.18,0.00027397,3]
[349245327,1737073861685,-151.0,0.00027397,7]
[349245328,1737073861695,-681.0,0.00027397,3]
[349245329,1737073861705,-575.18,0.00027397,3]
[349245330,1737073861715,-681.0,0.00027397,3]
[349245331,1737073861730,-151.0,0.00027397,7]
[349245332,1737073861744,-6456.32,0.00027397,3]
[349245333,1737073861753,-575.18,0.00027397,3]
[349245334,1737073861764,-681.0,0.00027397,3]
[349245335,1737073861773,-575.30111374,0.00027397,3]
[349245336,1737073861783,-152.365187,0.00027397,7]
[349245337,1737073861794,-681.0,0.00027397,3]
[349245338,1737073861805,-681.0,0.00027397,3]
[349245339,1737073861815,-6456.32,0.00027397,3]
[349245340,1737073861824,-681.0,0.00027397,3]
[349245341,1737073861834,-681.0,0.00027397,3]
[349245342,1737073861843,-2458.57101459,0.00027397,3]
[349245343,1737073862991,-635.69915844,0.00027297,2]
[349245344,1737073863003,-3997.74898541,0.00027397,3]
[349245345,1737073863013,-681.0,0.00027397,3]
[349245346,1737073863023,-681.0,0.00027397,3]
[349245347,1737073863033,-458.22975245,0.00027397,3]
[349245348,1737074215126,169.98,0.00010137,2]
[349245350,1737074299079,-169.98,0.00016813,2]
[349245351,1737074299101,-330.94832487,0.0002339,2]
[349245352,1737074299124,-169.98,0.0002349,2]
[349245353,1737074299145,-330.94832485,0.00024757,2]
[349245354,1737074299167,-330.94832485,0.00026123,2]
[349245355,1737074299188,-150.0,0.00026223,2]
[349245356,1737074299211,-20855.73,0.00026262,2]
[349245357,1737074299233,-500.0,0.000263,9]
[349245358,1737074299254,-14475.0,0.00026317,2]
[349245359,1737074299276,-1000.0,0.000264,9]
[349245360,1737074299297,-271.18,0.00026415,2]
[349245361,1737074299320,-1500.0,0.000265,9]
[349245362,1737074299341,-2000.0,0.000266,9]
[349245363,1737074299361,-1039.09,0.00026658,2]
[349245364,1737074299383,-2500.0,0.000267,9]
[349245365,1737074299405,-500.0,0.000268,9]
[349245366,1737074299427,-472.0758356,0.00026849,4]
[349245367,1737074299450,-500.0,0.000269,9]
[349245368,1737074299473,-550.0,0.00027,2]
[349245369,1737074299496,-300.0,0.00027296,2]
[349245370,1737074299518,-12409.5747,0.00027297,2]
[349245371,1737074299541,-5000.0,0.00027297,2]
[349245372,1737074299562,-1000.0,0.00027297,2]
[349245373,1737074299583,-1000.0,0.00027297,2]
[349245374,1737074299606,-2500.0,0.00027297,2]
[349245375,1737074299626,-36134.184,0.00027297,2]
[349245376,1737074299647,-1666.9414927,0.00027297,2]
[349245377,1737074299670,-167.14802507,0.00027297,2]
[349245378,1737074299693,-174.9145916,0.00027297,2]
[349245379,1737074299714,-423.79943896,0.00027297,2]
[349245380,1737074299735,-6472.51188066,0.00027297,2]
[349245381,1737074299756,-410.0,0.0002737,2]
[349245382,1737074299779,-376.57400709,0.00027373,2]
[349245383,1737074299800,-69396.37105375,0.00027394,5]
[349245384,1737074829121,-748.08,0.00024479,2]
[349245385,1737074829147,-540.66795266,0.00026123,2]
[349245386,1737074829169,-2859.572,0.00026223,12]
[349245387,1737074829190,-171.297,0.00026223,12]
[349245388,1737074829211,-1000.0,0.00026241,2]
[349245389,1737074829235,-300.0,0.0002627,2]
[349245390,1737074829256,-2177.29711904,0.00026271,2]
[349245391,1737074829277,-200.0,0.00026271,2]
[349245392,1737074829298,-150.0,0.00026356,2]
[349245393,1737074829319,-458.95,0.00026363,2]
[349245394,1737074829339,-250.0,0.00026371,2]
[349245395,1737074829361,-404.92,0.00026372,120]
[349245396,1737074829382,-163.73,0.00026418,2]
[349245397,1737074829405,-500.0,0.00026435,2]
[349245398,1737074829427,-912.69,0.00026445,2]
[349245399,1737074829449,-250.0,0.00026516,2]
[349245400,1737074829471,-748.08,0.00026743,2]
[349245401,1737074829493,-236.0379178,0.00026849,4]
[349245402,1737074829514,-211.0,0.00026855,3]
[349245403,1737074829536,-212.66,0.00026855,3]
[349245404,1737074829557,-2037.4456,0.00027197,2]
[349245405,1737074829578,-201.0,0.00027264,3]
[349245406,1737074829599,-736.100251,0.0002727,2]
[349245408,1737074849096,-1281.75257417,0.0002727,2]
[349245419,1737075031464,-200.0,0.000262,9]
[349245420,1737075031476,-500.0,0.000263,9]
[349245421,1737075031486,-93.07877249,0.000264,9]
[349245422,1737075031505,-706.92122751,0.000264,9]
[349245423,1737075031515,-89.77877249,0.000264,2]
[349245424,1737075031534,-107.28402982,0.000264,2]
[349245425,1737075031543,-250.0,0.00026428,2]
[349245426,1737075031551,-1000.0,0.000265,9]
[349245427,1737075031563,-1300.0,0.000266,9]
[349245428,1737075031575,-200.0,0.000267,9]
[349245429,1737075031589,-200.0,0.000268,9]
[349245430,1737075031599,-236.0379179,0.00026849,4]
[349245431,1737075031611,-200.0,0.000269,9]
[349245432,1737075031620,-300.0,0.000269,2]
[349245433,1737075031631,-150.0,0.000269,2]
[349245434,1737075031641,-752.1,0.000269,2]
[349245435,1737075031650,-3000.0,0.0002712,2]
[349245436,1737075031659,-6548.864,0.00027197,2]
[349245437,1737075031668,-565.8427,0.00027197,2]
[349245438,1737075031677,-8638.4316728,0.00027197,2]
[349245439,1737075031688,-14144.7960272,0.00027197,2]
[349245440,1737075031697,-1265.3036,0.00027197,2]
[349245441,1737075031706,-2630.0757,0.00027197,2]
[349245442,1737075031715,-7278.61,0.00027197,2]
[349245443,1737075031724,-311.7038,0.00027197,2]
[349245444,1737075031734,-2462.13267483,0.0002727,2]
[349245445,1737075031743,-15941.1038,0.0002727,2]
[349245446,1737075031753,-13086.499,0.0002727,2]
[349245447,1737075031763,-1000.0,0.0002727,2]
[349245448,1737075031773,-2500.0,0.0002727,2]
[349245449,1737075031782,-1000.0,0.00027297,2]
[349245450,1737075031792,-5000.0,0.00027297,2]
[349245451,1737075031801,-1437.3984,0.00027297,2]
[349245452,1737075031812,-7546.8706,0.00027297,2]
[349245453,1737075031822,-97859.1197,0.00027297,2]
[349245454,1737075031831,-873.38117805,0.00027297,30]
[349245455,1737075031841,-9427.7853,0.00027297,2]
[349245456,1737075031850,-1043.0945,0.00027297,2]
[349245457,1737075031859,-3559.20206712,0.00027297,2]
[349245458,1737075031869,-186.32410096,0.00027297,2]
[349245459,1737075031878,-4315.00792044,0.00027297,2]
[349245460,1737075031887,-174.91459158,0.00027297,2]
[349245461,1737075031896,-429.93842545,0.00027317,2]
[349245462,1737075031905,-20173.0,0.0002737,2]
[349245464,1737075031915,-519.2101584,0.00027373,2]
[349245466,1737075031924,-499.91242727,0.00027373,2]
[349245468,1737075031933,-151.04152635,0.00027373,2]
[349245470,1737075031943,-500.0,0.00027373,2]
[349245471,1737075031952,-4688.9966,0.0002738,2]
[349245472,1737075031961,-5521.29176823,0.0002738,15]
[349245473,1737075031970,-10846.753588,0.00027386,2]
[349245474,1737075031979,-499.2696309,0.00027386,2]
[349245475,1737075031988,-763.8939874,0.00027386,2]
[349245476,1737075031997,-7531.1223836,0.00027386,2]
[349245477,1737075032007,-50603.62894625,0.00027394,5]
[349245479,1737075032016,-1002.49815364,0.00027395,10]
[349245481,1737075032026,-321.44301265,0.00027396,2]
[349245483,1737075032035,-500.0,0.00027396,2]
[349245484,1737075032044,-666.0,0.00027396,2]
[349245485,1737075032054,-500.0,0.00027396,2]
[349245486,1737075032064,-1000.0,0.00027396,2]
[349245487,1737075032073,-151.0,0.00027397,7]
[349245488,1737075032082,-151.0,0.00027397,7]
[349245489,1737075032091,-151.0,0.00027397,7]
[349245490,1737075032101,-151.0,0.00027397,7]
[349245491,1737075032110,-151.0,0.00027397,7]
[349245492,1737075032120,-151.0,0.00027397,7]
[349245493,1737075032135,-151.0,0.00027397,7]
[349245494,1737075032144,-151.0,0.00027397,7]
[349245495,1737075032153,-151.0,0.00027397,7]
[349245496,1737075032162,-151.0,0.00027397,7]
[349245497,1737075032173,-151.064965,0.00027397,7]
[349245498,1737075032181,-196.027496,0.00027397,7]
[349245499,1737075032191,-196.027496,0.00027397,7]
[349245500,1737075032201,-196.027496,0.00027397,7]
[349245501,1737075032213,-196.027496,0.00027397,7]
[349245502,1737075032223,-196.027496,0.00027397,7]
[349245503,1737075032232,-196.027496,0.00027397,7]
[349245504,1737075032242,-196.027496,0.00027397,7]
[349245505,1737075032252,-196.027496,0.00027397,7]
[349245506,1737075032262,-196.027496,0.00027397,7]
[349245507,1737075032272,-196.027496,0.00027397,7]
[349245508,1737075032281,-196.027496,0.00027397,7]
[349245509,1737075032290,-196.027496,0.00027397,7]
[349245510,1737075032300,-196.027496,0.00027397,7]
[349245511,1737075032311,-196.027496,0.00027397,7]
[349245512,1737075032321,-196.027496,0.00027397,7]
[349245513,1737075032330,-196.027496,0.00027397,7]
[349245514,1737075032340,-196.027496,0.00027397,7]
[349245515,1737075032349,-196.027496,0.00027397,7]
[349245516,1737075032358,-196.027496,0.00027397,7]
[349245517,1737075032367,-196.027492,0.00027397,7]
[349245518,1737075032377,-151.0,0.00027397,7]
[349245519,1737075032386,-151.0,0.00027397,7]
[349245520,1737075032395,-151.0,0.00027397,7]
[349245521,1737075032405,-151.0,0.00027397,7]
[349245522,1737075032414,-151.0,0.00027397,7]
[349245523,1737075032423,-151.0,0.00027397,7]
[349245524,1737075032433,-151.0,0.00027397,7]
[349245525,1737075032442,-286.317087,0.00027397,7]
[349245526,1737075032451,-500.0,0.00027397,3]
[349245527,1737075032460,-523.0685735,0.00027397,3]
[349245528,1737075032470,-500.8232297,0.00027397,3]
[349245529,1737075032480,-168.695861,0.00027397,7]
[349245530,1737075032489,-168.695861,0.00027397,7]
[349245531,1737075032498,-168.695861,0.00027397,7]
[349245532,1737075032507,-168.695861,0.00027397,7]
[349245533,1737075032517,-161.897636,0.00027397,7]
[349245534,1737075032527,-168.695861,0.00027397,7]
[349245535,1737075032536,-168.695861,0.00027397,7]
[349245536,1737075032545,-168.695861,0.00027397,7]
[349245537,1737075032555,-168.695861,0.00027397,7]
[349245538,1737075032565,-168.695861,0.00027397,7]
[349245539,1737075032575,-168.695861,0.00027397,7]
[349245540,1737075032584,-168.695861,0.00027397,7]
[349245541,1737075032593,-168.695861,0.00027397,7]
[349245542,1737075032602,-168.695861,0.00027397,7]
[349245543,1737075032611,-168.695861,0.00027397,7]
[349245544,1737075032621,-168.695861,0.00027397,7]
[349245545,1737075032630,-168.695861,0.00027397,7]
[349245546,1737075032639,-168.695861,0.00027397,7]
[349245547,1737075032650,-168.695861,0.00027397,7]
[349245548,1737075032659,-168.695861,0.00027397,7]
[349245549,1737075032669,-168.69586,0.00027397,7]
[349245550,1737075032679,-4205.54,0.00027397,3]
[349245551,1737075032689,-4205.54,0.00027397,3]
[349245552,1737075032699,-4205.54,0.00027397,3]
[349245553,1737075032708,-4205.54,0.00027397,3]
[349245554,1737075032718,-4205.54,0.00027397,3]
[349245555,1737075032727,-3712.77520815,0.00027397,3]
[349245556,1737075032792,-492.76479185,0.00027397,3]
[349245557,1737075032801,-640.11121449,0.00027397,3]
[349245558,1737075032815,-1643.91621459,0.00027397,3]
[349245559,1737075032826,-1921.51257092,0.00027397,3]
[349245560,1737075032836,-1338.42695094,0.00027397,3]
[349245561,1737075032849,-750.37477044,0.00027397,3]
[349245562,1737075032882,-1956.94,0.00027397,3]
[349245563,1737075032893,-159.79827862,0.00027397,3]
[349245564,1737075032904,-4205.54,0.00027397,3]
[349245565,1737075032914,-4205.54,0.00027397,3]
[349245566,1737075032924,-4205.54,0.00027397,3]
[349245567,1737075032933,-4205.54,0.00027397,3]
[349245568,1737075032943,-4205.54,0.00027397,3]
[349245569,1737075032952,-4205.54,0.00027397,3]
[349245570,1737075032962,-4205.54,0.00027397,3]
[349245571,1737075032972,-4205.54,0.00027397,3]
[349245572,1737075032981,-4205.54,0.00027397,3]
[349245573,1737075032991,-4205.54,0.00027397,3]
[349245574,1737075033002,-4205.54,0.00027397,3]
[349245575,1737075033013,-4205.54,0.00027397,3]
[349245576,1737075033023,-4205.54,0.00027397,3]
[349245577,1737075033034,-4205.54,0.00027397,3]
[349245578,1737075033044,-4205.54,0.00027397,3]
[349245579,1737075033055,-4205.6573199,0.00027397,3]
[349245580,1737075033068,-500.0,0.00027397,3]